fUSD/lending_fUSD_20240617
["ID","MTS","AMOUNT","RATE_DAILY","PERIOD"]
[329764213,1718655041406,-1197.43,0.00021917,2]
[329764215,1718655041416,-500.0,0.00021917,2]
[329764217,1718655041426,-956.48,0.00021917,2]
[329764219,1718655041436,-500.0,0.00021917,2]
[329764221,1718655041446,-1314.01,0.00021917,2]
[329764223,1718655041456,-500.0,0.00021917,2]
[329764225,1718655041465,-500.0,0.00021917,2]
[329764227,1718655041475,-500.0,0.00021917,2]
[329764229,1718655041484,-500.0,0.00021917,2]
[329764231,1718655041494,-905.53,0.00021917,2]
[329764233,1718655041503,-151.0,0.00021917,2]
[329764235,1718655041512,-500.0,0.00021917,2]
[329764237,1718655041522,-778.47,0.00021917,2]
[329764239,1718655041532,-500.0,0.00021917,2]
[329764241,1718655041542,-500.0,0.00021917,2]
[329764243,1718655041551,-562.55990259,0.00021917,2]
[329764245,1718655041561,-2002.5,0.00021917,2]
[329764247,1718655041570,-500.0,0.00021917,2]
[329764249,1718655041579,-500.0,0.00021917,2]
[329764251,1718655041588,-500.0,0.00021917,2]
[329764253,1718655041598,-500.0,0.00021917,2]
[329764255,1718655041608,-323.60907873,0.00021917,2]
[329764258,1718655041627,-176.39092127,0.00021917,2]
[329764260,1718655041636,-243.30907873,0.00021917,2]
[329764262,1718655041648,-286.18192272,0.00021917,2]
[329764264,1718655041660,-1118.05899855,0.00021917,2]
[329764266,1718655041669,-1117.86,0.00021917,2]
[329764268,1718655041679,-500.0,0.00021917,2]
[329764270,1718655041688,-500.0,0.00021917,2]
[329764272,1718655041697,-970.91,0.00021917,2]
[329764274,1718655041706,-500.0,0.00021917,2]
[329764276,1718655041715,-500.0,0.00021917,2]
[329764278,1718655041725,-508.6951051,0.00021917,2]
[329764280,1718655041734,-500.0,0.00021917,2]
[329764282,1718655041744,-500.0,0.00021917,2]
[329764284,1718655041753,-995.64,0.00021917,2]
[329764286,1718655041763,-602.27,0.00021917,2]
[329764288,1718655041772,-1640.03439636,0.00021917,2]
[329764292,1718655041797,-359.96560364,0.00021917,2]
[329764293,1718655041807,-500.0,0.00021917,2]
[329764295,1718655041819,-500.0,0.00021917,2]
[329764298,1718655041828,-500.0,0.00021917,2]
[329764300,1718655041838,-500.0,0.00021917,2]
[329764302,1718655041848,-500.0,0.00021917,2]
[329764304,1718655041857,-500.0,0.00021917,2]
[329764306,1718655041867,-500.0,0.00021917,2]
[329764307,1718655041876,-500.0,0.00021917,2]
[329764309,1718655041886,-734.65,0.00021917,2]
[329764312,1718655041895,-500.0,0.00021917,2]
[329764314,1718655041905,-1231.47,0.00021917,2]
[329764316,1718655041916,-500.0,0.00021917,2]
[329764318,1718655041929,-500.0,0.00021917,2]
[329764320,1718655041938,-500.0,0.00021917,2]
[329764321,1718655041947,-1037.66,0.00021917,2]
[329764324,1718655041958,-1520.38,0.00021917,2]
[329764326,1718655041968,-500.0,0.00021917,2]
[329764328,1718655041978,-500.0,0.00021917,2]
[329764330,1718655041987,-1095.19,0.00021917,2]
[329764332,1718655041998,-2024.24,0.00021917,2]
[329764334,1718655042009,-500.0,0.00021917,2]
[329764336,1718655042019,-500.0,0.00021917,2]
[329764338,1718655042029,-500.0,0.00021917,2]
[329764340,1718655042038,-500.0,0.00021917,2]
[329764342,1718655042048,-649.56,0.00021917,2]
[329764344,1718655042058,-500.0,0.00021917,2]
[329764346,1718655042067,-512.47,0.00021917,2]
[329764348,1718655042077,-500.0,0.00021917,2]
[329764350,1718655042086,-500.0,0.00021917,2]
[329764352,1718655042095,-500.0,0.00021917,2]
[329764354,1718655042105,-832.4,0.00021917,2]
[329764356,1718655042114,-500.0,0.00021917,2]
[329764359,1718655042203,-631.99145628,0.00021917,2]
[329764361,1718655042215,-755.31,0.00021917,2]
[329764363,1718655042225,-500.0,0.00021917,2]
[329764364,1718655042235,-328.39016251,0.00021917,2]
[329764367,1718655042244,-2230.89,0.00021917,2]
[329764369,1718655042254,-504.89274069,0.00021917,2]
[329764371,1718655042263,-587.85,0.00021917,2]
[329764373,1718655042272,-500.0,0.00021917,2]
[329764375,1718655042281,-500.0,0.00021917,2]
[329764377,1718655042291,-500.0,0.00021917,2]
[329764379,1718655042300,-1019.25,0.00021917,2]
[329764381,1718655042310,-2230.34919909,0.00021917,2]
[329764383,1718655042320,-500.0,0.00021917,2]
[329764385,1718655042329,-500.0,0.00021917,2]
[329764387,1718655042338,-500.0,0.00021917,2]
[329764389,1718655042348,-1033.59,0.00021917,2]
[329764391,1718655042359,-669.26,0.00021917,2]
[329764393,1718655042368,-500.0,0.00021917,2]
[329764395,1718655042378,-500.0,0.00021917,2]
[329764397,1718655042388,-500.0,0.00021917,2]
[329764399,1718655042397,-500.0,0.00021917,2]
[329764401,1718655042407,-298.42527144,0.00021917,2]
[329764403,1718655042421,-201.57472856,0.00021917,2]
[329764405,1718655042430,-500.0,0.00021917,2]
[329764407,1718655042440,-1096.66,0.00021917,2]
[329764409,1718655042450,-406.24508334,0.00021917,2]
[329764546,1718655043787,-250.0,0.00013208,2]
[329764548,1718655043799,-93.75491666,0.00021917,2]
[329764550,1718655043808,-500.0,0.00021917,2]
[329764552,1718655043818,-500.0,0.00021917,2]
[329764554,1718655043828,-783.79,0.00021917,2]
[329764556,1718655043838,-374.23861331,0.00021917,2]
[329764560,1718655043872,-125.76138669,0.00021917,2]
[329764562,1718655043882,-1714.94,0.00021917,2]
[329764564,1718655043892,-831.46,0.00021917,2]
[329764567,1718655043901,-151.0,0.00021917,2]
[329764569,1718655043912,-1169.92,0.00021917,2]
[329764571,1718655043926,-561.49884029,0.00021917,2]
[329764573,1718655043937,-647.8,0.00021917,2]
[329764575,1718655043946,-151.0,0.00021917,2]
[329764577,1718655043956,-500.0,0.00021917,2]
[329764579,1718655043966,-500.0,0.00021917,2]
[329764581,1718655043976,-500.0,0.00021917,2]
[329764583,1718655043985,-500.0,0.00021917,2]
[329764585,1718655043996,-500.0,0.00021917,2]
[329764587,1718655044006,-521.46719689,0.00021917,2]
[329764589,1718655044017,-589.17731701,0.00021917,2]
[329764591,1718655044027,-500.0,0.00021917,2]
[329764593,1718655044037,-500.0,0.00021917,2]
[329764594,1718655044049,-1487.78,0.00021917,2]
[329764595,1718655044060,-851.77,0.00021917,2]
[329764600,1718655044071,-500.0,0.00021917,2]
[329764604,1718655044288,-820.0,0.00021917,2]
[329764606,1718655044298,-897.74,0.00021917,2]
[329764607,1718655044307,-1903.59,0.00021917,2]
[329764609,1718655044316,-500.0,0.00021917,2]
[329764611,1718655044326,-500.0,0.00021917,2]
[329764613,1718655044336,-833.65,0.00021917,2]
[329764615,1718655044346,-639.70799101,0.00021917,2]
[329764617,1718655044355,-500.0,0.00021917,2]
[329764619,1718655044365,-500.0,0.00021917,2]
[329764621,1718655044374,-151.0,0.00021917,2]
[329764623,1718655044383,-534.26458434,0.00021917,2]
[329764625,1718655044393,-522.9,0.00021917,2]
[329764627,1718655044403,-500.0,0.00021917,2]
[329764629,1718655044413,-500.0,0.00021917,2]
[329764631,1718655044423,-500.0,0.00021917,2]
[329764633,1718655044432,-500.0,0.00021917,2]
[329764635,1718655044441,-500.0,0.00021917,2]
[329764637,1718655044451,-551.41,0.00021917,2]
[329764639,1718655044461,-662.66,0.00021917,2]
[329764641,1718655044472,-500.0,0.00021917,2]
[329764643,1718655044482,-500.0,0.00021917,2]
[329764645,1718655044491,-500.0,0.00021917,2]
[329764647,1718655044501,-1060.27,0.00021917,2]
[329764649,1718655044510,-500.0,0.00021917,2]
[329764651,1718655044520,-500.0,0.00021917,2]
[329764653,1718655044529,-1673.12,0.00021917,2]
[329764655,1718655044539,-1000.83,0.00021917,2]
[329764657,1718655044548,-500.0,0.00021917,2]
[329764659,1718655044557,-500.0,0.00021917,2]
[329764661,1718655044567,-500.0,0.00021917,2]
[329764664,1718655044577,-500.0,0.00021917,2]
[329764666,1718655044586,-500.0,0.00021917,2]
[329764668,1718655044612,-500.0,0.00021917,2]
[329764670,1718655044622,-1426.72,0.00021917,2]
[329764672,1718655044632,-500.0,0.00021917,2]
[329764673,1718655044641,-500.0,0.00021917,2]
[329764676,1718655044651,-513.74659307,0.00021917,2]
[329764678,1718655044660,-500.0,0.00021917,2]
[329764680,1718655044672,-536.00276601,0.00021917,2]
[329764682,1718655044681,-547.41,0.00021917,2]
[329764684,1718655044691,-740.35,0.00021917,2]
[329764686,1718655044700,-500.0,0.00021917,2]
[329764688,1718655044709,-500.0,0.00021917,2]
[329764690,1718655044719,-500.0,0.00021917,2]
[329764692,1718655044728,-500.0,0.00021917,2]
[329764694,1718655044737,-500.0,0.00021917,2]
[329764696,1718655044746,-500.0,0.00021917,2]
[329764698,1718655044756,-500.0,0.00021917,2]
[329764700,1718655044765,-1104.7,0.00021917,2]
[329764702,1718655044774,-1126.98,0.00021917,2]
[329764704,1718655044783,-500.0,0.00021917,2]
[329764706,1718655044793,-500.0,0.00021917,2]
[329764708,1718655044802,-500.0,0.00021917,2]
[329764710,1718655044812,-500.0,0.00021917,2]
[329764712,1718655044823,-500.0,0.00021917,2]
[329764713,1718655044832,-213.79336616,0.00021917,2]
[329764715,1718655044841,-511.34347698,0.00021917,2]
[329764717,1718655044851,-500.0,0.00021917,2]
[329764718,1718655044859,-500.0,0.00021917,2]
[329764720,1718655044869,-500.0,0.00021917,2]
[329764722,1718655044879,-500.0,0.00021917,2]
[329764723,1718655044888,-927.98,0.00021917,2]
[329764725,1718655044897,-557.09,0.00021917,2]
[329764727,1718655044907,-500.0,0.00021917,2]
[329764729,1718655044918,-500.0,0.00021917,2]
[329764730,1718655044930,-500.0,0.00021917,2]
[329764732,1718655044939,-2390.59,0.00021917,2]
[329764734,1718655044948,-500.0,0.00021917,2]
[329764736,1718655044958,-1967.52,0.00021917,2]
[329764738,1718655044967,-200.0,0.00021917,2]
[329764739,1718655044977,-500.0,0.00021917,2]
[329764741,1718655044987,-1656.89,0.00021917,2]
[329764743,1718655044998,-897.99,0.00021917,2]
[329764744,1718655045007,-16132.6,0.00021917,2]
[329764746,1718655045017,-500.0,0.00021917,2]
[329764748,1718655045026,-500.0,0.00021917,2]
[329764750,1718655045035,-500.0,0.00021917,2]
[329764751,1718655045044,-500.0,0.00021917,2]
[329764753,1718655045053,-1000.0,0.00021917,2]
[329764755,1718655045063,-500.0,0.00021917,2]
[329764757,1718655045072,-282.08093666,0.00021917,2]
[329764758,1718655045081,-796.08,0.00021917,2]
[329764760,1718655045110,-1412.7,0.00021917,2]
[329764762,1718655045119,-7472.77,0.00021917,2]
[329764764,1718655045128,-500.0,0.00021917,2]
[329764766,1718655045137,-545.89266127,0.00021917,2]
[329764767,1718655045146,-500.0,0.00021917,2]
[329764769,1718655045156,-1238.52,0.00021917,2]
[329764771,1718655045164,-500.0,0.00021917,2]
[329764773,1718655045174,-514.06909444,0.00021917,2]
[329764775,1718655045183,-500.0,0.00021917,2]
[329764776,1718655045193,-500.0,0.00021917,2]
[329764778,1718655045202,-1117.25,0.00021917,2]
[329764780,1718655045212,-621.92,0.00021917,2]
[329764781,1718655045222,-500.0,0.00021917,2]
[329764782,1718655045232,-914.92,0.00021917,2]
[329764783,1718655045241,-2571.23,0.00021917,2]
[329764784,1718655045251,-209.27531972,0.00021917,2]
[329764785,1718655045260,-500.0,0.00021917,2]
[329764786,1718655045270,-500.0,0.00021917,2]
[329764787,1718655045280,-500.0,0.00021917,2]
[329764788,1718655045289,-500.0,0.00021917,2]
[329764789,1718655045299,-813.43,0.00021917,2]
[329764790,1718655045308,-13197.41,0.00021917,2]
[329764791,1718655045318,-946.94,0.00021917,2]
[329764792,1718655045327,-500.0,0.00021917,2]
[329764793,1718655045336,-1875.65,0.00021917,2]
[329764794,1718655045345,-500.0,0.00021917,2]
[329764795,1718655045355,-500.0,0.00021917,2]
[329764796,1718655045365,-553.05,0.00021917,2]
[329764797,1718655045374,-500.0,0.00021917,2]
[329764798,1718655045383,-522.52,0.00021917,2]
[329764799,1718655045392,-500.0,0.00021917,2]
[329764800,1718655045402,-500.0,0.00021917,2]
[329764801,1718655045411,-500.0,0.00021917,2]
[329764802,1718655045421,-542.47952555,0.00021917,2]
[329764803,1718655045430,-500.0,0.00021917,2]
[329764804,1718655045440,-6863.75513874,0.00021917,2]
[329764814,1718655045861,-324.70623153,0.00013958,2]
[329764817,1718655045871,-145.55896845,0.00021719,2]
[329764819,1718655045883,-560.49203155,0.00021719,2]
[329764821,1718655045894,-497.89086098,0.00021917,2]
[329764839,1718655046042,-1606.0,0.00021917,2]
[329764842,1718655046054,-579.70116691,0.00021917,2]
[329764844,1718655046065,-1651.82872962,0.00021917,2]
[329764846,1718655046080,-505.39845875,0.00021917,2]
[329764849,1718655046092,-1059.84164472,0.00021917,2]
[329764850,1718655046102,-720.62,0.00021917,2]
[329764853,1718655046129,-1551.55,0.00021917,2]
[329764854,1718655046138,-2238.69,0.00021917,2]
[329764856,1718655046147,-500.0,0.00021917,2]
[329764858,1718655046155,-500.0,0.00021917,2]
[329764860,1718655046164,-500.0,0.00021917,2]
[329764862,1718655046173,-500.0,0.00021917,2]
[329764864,1718655046182,-500.0,0.00021917,2]
[329764866,1718655046192,-557.88,0.00021917,2]
[329764868,1718655046201,-500.0,0.00021917,2]
[329764870,1718655046211,-500.0,0.00021917,2]
[329764872,1718655046219,-18890.95,0.00021917,2]
[329764874,1718655046228,-500.0,0.00021917,2]
[329764876,1718655046238,-500.0,0.00021917,2]
[329764878,1718655046247,-500.0,0.00021917,2]
[329764880,1718655046257,-1851.86,0.00021917,2]
[329764881,1718655046266,-500.0,0.00021917,2]
[329764882,1718655046275,-2058.77,0.00021917,2]
[329764883,1718655046284,-500.0,0.00021917,2]
[329764884,1718655046294,-630.1,0.00021917,2]
[329764885,1718655046303,-599.27,0.00021917,2]
[329764886,1718655046313,-500.0,0.00021917,2]
[329764887,1718655046322,-550.47,0.00021917,2]
[329764888,1718655046332,-500.0,0.00021917,2]
[329764889,1718655046341,-500.0,0.00021917,2]
[329764890,1718655046350,-500.0,0.00021917,2]
[329764891,1718655046359,-500.0,0.00021917,2]
[329764892,1718655046370,-544.05,0.00021917,2]
[329764893,1718655046380,-51232.87,0.00021917,2]
[329764894,1718655046390,-4384.76,0.00021917,2]
[329764895,1718655046399,-239.93899693,0.00021917,2]
[329764896,1718655046409,-1257.44,0.00021917,2]
[329764897,1718655046419,-2410.15,0.00021917,2]
[329764898,1718655046428,-151.0,0.00021917,2]
[329764899,1718655046437,-500.0,0.00021917,2]
[329764900,1718655046447,-500.0,0.00021917,2]
[329764901,1718655046456,-500.0,0.00021917,2]
[329764902,1718655046466,-500.0,0.00021917,2]
[329764903,1718655046476,-2098.41,0.00021917,2]
[329764904,1718655046486,-674.02,0.00021917,2]
[329764905,1718655046497,-500.0,0.00021917,2]
[329764906,1718655046507,-636.4,0.00021917,2]
[329764907,1718655046517,-500.0,0.00021917,2]
[329764908,1718655046526,-500.0,0.00021917,2]
[329764909,1718655046536,-500.0,0.00021917,2]
[329764910,1718655046546,-500.0,0.00021917,2]
[329764911,1718655046556,-500.0,0.00021917,2]
[329764912,1718655046566,-500.0,0.00021917,2]
[329764913,1718655046575,-1023.82,0.00021917,2]
[329764914,1718655046585,-782.2,0.00021917,2]
[329764915,1718655046594,-554.93,0.00021917,2]
[329764916,1718655046603,-1702.99,0.00021917,2]
[329764917,1718655046613,-1281.04,0.00021917,2]
[329764918,1718655046637,-3105.55,0.00021917,2]
[329764919,1718655046647,-500.0,0.00021917,2]
[329764920,1718655046656,-2034.48,0.00021917,2]
[329764921,1718655046666,-5775.46,0.00021917,2]
[329764922,1718655046675,-500.0,0.00021917,2]
[329764923,1718655046684,-500.0,0.00021917,2]
[329764924,1718655046693,-733.85,0.00021917,2]
[329764926,1718655046702,-500.0,0.00021917,2]
[329764928,1718655046712,-1194.63,0.00021917,2]
[329764930,1718655046722,-500.0,0.00021917,2]
[329764932,1718655046731,-500.0,0.00021917,2]
[329764934,1718655046741,-500.0,0.00021917,2]
[329764936,1718655046750,-500.0,0.00021917,2]
[329764938,1718655046760,-500.0,0.00021917,2]
[329764939,1718655046769,-2718.63,0.00021917,2]
[329764940,1718655046779,-8186.16,0.00021917,2]
[329764941,1718655046788,-989.18,0.00021917,2]
[329764942,1718655046797,-584.58,0.00021917,2]
[329764943,1718655046807,-3388.15,0.00021917,2]
[329764944,1718655046816,-1024.29,0.00021917,2]
[329764945,1718655046827,-500.0,0.00021917,2]
[329764946,1718655046836,-3637.62,0.00021917,2]
[329764947,1718655046845,-500.0,0.00021917,2]
[329764948,1718655046854,-500.0,0.00021917,2]
[329764949,1718655046864,-555.13,0.00021917,2]
[329764950,1718655046873,-500.0,0.00021917,2]
[329764951,1718655046883,-5852.37,0.00021917,2]
[329764952,1718655046892,-947.75,0.00021917,2]
[329764953,1718655046901,-3682.79,0.00021917,2]
[329764954,1718655046911,-500.0,0.00021917,2]
[329764955,1718655046923,-500.0,0.00021917,2]
[329764956,1718655046933,-3919.01,0.00021917,2]
[329764957,1718655046943,-500.0,0.00021917,2]
[329764958,1718655046952,-1815.51,0.00021917,2]
[329764959,1718655046962,-1372.03,0.00021917,2]
[329764960,1718655046972,-500.0,0.00021917,2]
[329764961,1718655046982,-500.0,0.00021917,2]
[329764962,1718655046992,-500.0,0.00021917,2]
[329764963,1718655047002,-720.36,0.00021917,2]
[329764964,1718655047012,-1648.11,0.00021917,2]
[329764965,1718655047021,-500.0,0.00021917,2]
[329764966,1718655047031,-952.73,0.00021917,2]
[329764967,1718655047042,-9827.34,0.00021917,2]
[329764968,1718655047053,-7652.84,0.00021917,2]
[329764969,1718655047062,-25074.39,0.00021917,2]
[329764970,1718655047071,-500.0,0.00021917,2]
[329764971,1718655047080,-1806.48,0.00021917,2]
[329764972,1718655047091,-6532.67,0.00021917,2]
[329764973,1718655047100,-500.0,0.00021917,2]
[329764974,1718655047110,-1415.28,0.00021917,2]
[329764975,1718655047128,-6325.01,0.00021917,2]
[329764976,1718655047137,-601.58,0.00021917,2]
[329764977,1718655047147,-500.0,0.00021917,2]
[329764978,1718655047156,-500.0,0.00021917,2]
[329764979,1718655047169,-500.0,0.00021917,2]
[329764980,1718655047179,-1507.65,0.00021917,2]
[329764981,1718655047190,-519.24034485,0.00021917,2]
[329764982,1718655047199,-500.0,0.00021917,2]
[329764983,1718655047209,-500.0,0.00021917,2]
[329764984,1718655047218,-1881.97,0.00021917,2]
[329764985,1718655047228,-1106.23,0.00021917,2]
[329764986,1718655047238,-516.66,0.00021917,2]
[329764987,1718655047247,-500.0,0.00021917,2]
[329764988,1718655047256,-179.202458,0.00021917,2]
[329764989,1718655047266,-500.0,0.00021917,2]
[329764990,1718655047275,-500.0,0.00021917,2]
[329764991,1718655047285,-500.0,0.00021917,2]
[329764992,1718655047294,-5621.4,0.00021917,2]
[329764993,1718655047304,-1778.27,0.00021917,2]
[329764994,1718655047314,-500.0,0.00021917,2]
[329764995,1718655047323,-500.0,0.00021917,2]
[329764996,1718655047334,-500.0,0.00021917,2]
[329764997,1718655047343,-2784.61,0.00021917,2]
[329764998,1718655047354,-1063.62,0.00021917,2]
[329764999,1718655047364,-500.0,0.00021917,2]
[329765000,1718655047374,-1851.7,0.00021917,2]
[329765001,1718655047384,-500.0,0.00021917,2]
[329765002,1718655047394,-11051.7,0.00021917,2]
[329765003,1718655047404,-2072.97,0.00021917,2]
[329765004,1718655047414,-1854.94,0.00021917,2]
[329765005,1718655047423,-5579.65,0.00021917,2]
[329765006,1718655047433,-500.0,0.00021917,2]
[329765007,1718655047443,-500.0,0.00021917,2]
[329765008,1718655047453,-2016.72,0.00021917,2]
[329765009,1718655047462,-790.89,0.00021917,2]
[329765010,1718655047472,-500.0,0.00021917,2]
[329765011,1718655047481,-500.0,0.00021917,2]
[329765012,1718655047490,-500.0,0.00021917,2]
[329765013,1718655047499,-500.0,0.00021917,2]
[329765014,1718655047508,-47899.61,0.00021917,2]
[329765015,1718655047517,-500.0,0.00021917,2]
[329765016,1718655047526,-500.0,0.00021917,2]
[329765017,1718655047535,-500.0,0.00021917,2]
[329765018,1718655047544,-500.0,0.00021917,2]
[329765019,1718655047553,-500.0,0.00021917,2]
[329765020,1718655047563,-2841.5,0.00021917,2]
[329765021,1718655047572,-500.0,0.00021917,2]
[329765022,1718655047581,-546.49371333,0.00021917,2]
[329765023,1718655047591,-500.0,0.00021917,2]
[329765024,1718655047600,-15295.92,0.00021917,2]
[329765025,1718655047802,-1117.79,0.00021917,2]
[329765026,1718655047812,-500.0,0.00021917,2]
[329765027,1718655047821,-500.0,0.00021917,2]
[329765028,1718655047830,-730.19,0.00021917,2]
[329765029,1718655047839,-500.0,0.00021917,2]
[329765030,1718655047848,-500.0,0.00021917,2]
[329765031,1718655047858,-500.0,0.00021917,2]
[329765032,1718655047867,-500.0,0.00021917,2]
[329765033,1718655047887,-151.0,0.00021917,2]
[329765034,1718655047896,-2350.38,0.00021917,2]
[329765035,1718655047905,-1573.64,0.00021917,2]
[329765036,1718655047918,-605.42816142,0.00021917,2]
[329765037,1718655047930,-738.05,0.00021917,2]
[329765038,1718655047939,-436.13,0.00021917,2]
[329765039,1718655047949,-159.851396,0.00021917,2]
[329765040,1718655047960,-4608.0,0.00021917,2]
[329765041,1718655047968,-500.0,0.00021917,2]
[329765042,1718655047977,-500.0,0.00021917,2]
[329765043,1718655047987,-500.0,0.00021917,2]
[329765044,1718655047997,-6787.12,0.00021917,2]
[329765045,1718655048007,-500.0,0.00021917,2]
[329765046,1718655048016,-500.0,0.00021917,2]
[329765047,1718655048026,-500.0,0.00021917,2]
[329765048,1718655048035,-5784.97,0.00021917,2]
[329765049,1718655048045,-151.0,0.00021917,2]
[329765050,1718655048053,-1932.08,0.00021917,2]
[329765051,1718655048062,-500.0,0.00021917,2]
[329765052,1718655048071,-500.0,0.00021917,2]
[329765053,1718655048080,-1068.18,0.00021917,2]
[329765054,1718655048089,-9390.68,0.00021917,2]
[329765055,1718655048099,-500.0,0.00021917,2]
[329765056,1718655048108,-944.73,0.00021917,2]
[329765057,1718655048117,-973.74,0.00021917,2]
[329765058,1718655048131,-500.0,0.00021917,2]
[329765059,1718655048141,-500.0,0.00021917,2]
[329765060,1718655048150,-8344.7,0.00021917,2]
[329765061,1718655048159,-722.98,0.00021917,2]
[329765062,1718655048168,-680.11,0.00021917,2]
[329765063,1718655048177,-1161.94,0.00021917,2]
[329765064,1718655048186,-500.0,0.00021917,2]
[329765065,1718655048195,-48669.15,0.00021917,2]
[329765066,1718655048204,-500.0,0.00021917,2]
[329765067,1718655048213,-4019.74,0.00021917,2]
[329765068,1718655048222,-500.0,0.00021917,2]
[329765069,1718655048231,-500.0,0.00021917,2]
[329765070,1718655048240,-4731.19,0.00021917,2]
[329765071,1718655048249,-565.37990899,0.00021917,2]
[329765072,1718655048259,-1406.8,0.00021917,2]
[329765073,1718655048267,-3028.19,0.00021917,2]
[329765074,1718655048277,-500.0,0.00021917,2]
[329765075,1718655048286,-500.0,0.00021917,2]
[329765076,1718655048294,-500.0,0.00021917,2]
[329765077,1718655048304,-500.0,0.00021917,2]
[329765078,1718655048313,-500.0,0.00021917,2]
[329765079,1718655048322,-500.0,0.00021917,2]
[329765080,1718655048331,-11466.38,0.00021917,2]
[329765081,1718655048341,-893.11,0.00021917,2]
[329765082,1718655048351,-500.0,0.00021917,2]
[329765083,1718655048361,-500.0,0.00021917,2]
[329765084,1718655048377,-500.0,0.00021917,2]
[329765085,1718655048387,-15214.99,0.00021917,2]
[329765086,1718655048397,-500.0,0.00021917,2]
[329765087,1718655048407,-536.47793633,0.00021917,2]
[329765088,1718655048416,-780.62,0.00021917,2]
[329765089,1718655048426,-529.28052477,0.00021917,2]
[329765090,1718655048436,-1248.8,0.00021917,2]
[329765091,1718655048446,-500.0,0.00021917,2]
[329765092,1718655048456,-4479.76,0.00021917,2]
[329765093,1718655048465,-2524.96,0.00021917,2]
[329765094,1718655048475,-500.0,0.00021917,2]
[329765095,1718655048484,-5936.28,0.00021917,2]
[329765096,1718655048495,-851.32,0.00021917,2]
[329765097,1718655048504,-500.0,0.00021917,2]
[329765098,1718655048514,-675.89,0.00021917,2]
[329765099,1718655048523,-551.8,0.00021917,2]
[329765100,1718655048534,-500.0,0.00021917,2]
[329765101,1718655048543,-500.0,0.00021917,2]
[329765102,1718655048553,-4644.58,0.00021917,2]
[329765103,1718655048563,-500.0,0.00021917,2]
[329765104,1718655048573,-1393.43,0.00021917,2]
[329765105,1718655048582,-4855.24,0.00021917,2]
[329765106,1718655048592,-9870.51,0.00021917,2]
[329765107,1718655048601,-500.0,0.00021917,2]
[329765108,1718655048610,-721.37,0.00021917,2]
[329765109,1718655048625,-5199.01,0.00021917,2]
[329765110,1718655048635,-13764.98,0.00021917,2]
[329765111,1718655048645,-4164.9,0.00021917,2]
[329765112,1718655048654,-500.0,0.00021917,2]
[329765113,1718655048664,-4893.9,0.00021917,2]
[329765114,1718655048673,-1002.28,0.00021917,2]
[329765115,1718655048683,-500.0,0.00021917,2]
[329765116,1718655048692,-500.0,0.00021917,2]
[329765117,1718655048701,-2513.71,0.00021917,2]
[329765118,1718655048711,-500.0,0.00021917,2]
[329765119,1718655048721,-607.63,0.00021917,2]
[329765120,1718655048731,-1114.9,0.00021917,2]
[329765121,1718655048740,-500.0,0.00021917,2]